[Event "Titled Tuesday Blitz June 14 Early 2022"]
[White "Shipov, Sergei"]
[Black "Snehal, Bhosale"]
[WhiteFideId "4113624"]
[BlackFideId "5021995"]
[WhiteElo "2793"]
[BlackElo "2103"]
[Result "1-0"]
[Round "10"]
[TimeControl "180+1"]
[Date "2022.06.14"]
[WhiteClock "0:00:47"]
[BlackClock "0:00:12"]

1. d4 {[%clk 0:03:00]}  d5 {[%clk 0:02:59]} 2. c4 {[%clk 0:03:00]}  c6 {[%clk 0:03:00]} 3. Nc3 {[%clk 0:03:01]}  Nf6 {[%clk 0:03:00]} 4. Nf3 {[%clk 0:03:01]}  a6 {[%clk 0:03:01]} 5. h3 {[%clk 0:03:00]}  b5 {[%clk 0:02:55]} 6. c5 {[%clk 0:03:00]}  g6 {[%clk 0:02:48]} 7. Bf4 {[%clk 0:03:00]}  Bg7 {[%clk 0:02:47]} 8. e3 {[%clk 0:02:59]}  O-O {[%clk 0:02:47]} 9. Bd3 {[%clk 0:02:59]}  Nfd7 {[%clk 0:02:46]} 10. e4 {[%clk 0:02:53]}  e5 {[%clk 0:02:30]} 11. Nxe5 {[%clk 0:02:48]}  Nxe5 {[%clk 0:02:29]} 12. Bxe5 {[%clk 0:02:47]}  Bxe5 {[%clk 0:02:29]} 13. dxe5 {[%clk 0:02:48]}  Qe7 {[%clk 0:02:24]} 14. exd5 {[%clk 0:02:40]}  Qxc5 {[%clk 0:02:15]} 15. O-O {[%clk 0:02:02]}  cxd5 {[%clk 0:02:10]} 16. Qf3 {[%clk 0:02:01]}  Bb7 {[%clk 0:01:38]} 17. Qf4 {[%clk 0:01:56]}  Nd7 {[%clk 0:01:32]} 18. Rfe1 {[%clk 0:01:54]}  Rae8 {[%clk 0:01:30]} 19. Rad1 {[%clk 0:01:41]}  d4 {[%clk 0:01:27]} 20. Ne4 {[%clk 0:01:40]}  Bxe4 {[%clk 0:01:16]} 21. Rxe4 {[%clk 0:01:33]}  Nxe5 {[%clk 0:01:15]} 22. Rxd4 {[%clk 0:01:30]}  Rd8 {[%clk 0:01:09]} 23. Bf1 {[%clk 0:01:25]}  Nc6 {[%clk 0:00:59]} 24. Rxd8 {[%clk 0:01:23]}  Rxd8 {[%clk 0:01:00]} 25. Rxd8+ {[%clk 0:01:23]}  Nxd8 {[%clk 0:01:01]} 26. Qb8 {[%clk 0:01:22]}  Qd4 {[%clk 0:00:57]} 27. Qa8 {[%clk 0:01:13]}  Qd6 {[%clk 0:00:55]} 28. a4 {[%clk 0:01:08]}  bxa4 {[%clk 0:00:51]} 29. Qxa6 {[%clk 0:01:09]}  Qd1 {[%clk 0:00:47]} 30. Qd3 {[%clk 0:01:05]}  Qxd3 {[%clk 0:00:45]} 31. Bxd3 {[%clk 0:01:06]}  Ne6 {[%clk 0:00:46]} 32. Kf1 {[%clk 0:01:03]}  Kf8 {[%clk 0:00:45]} 33. Bc2 {[%clk 0:01:03]}  Nc5 {[%clk 0:00:43]} 34. Ke2 {[%clk 0:01:03]}  Ke7 {[%clk 0:00:44]} 35. Ke3 {[%clk 0:01:04]}  Ke6 {[%clk 0:00:43]} 36. Kd4 {[%clk 0:01:03]}  Kd6 {[%clk 0:00:43]} 37. g3 {[%clk 0:01:02]}  f6 {[%clk 0:00:43]} 38. Kc4 {[%clk 0:01:01]}  f5 {[%clk 0:00:29]} 39. h4 {[%clk 0:01:01]}  Kc6 {[%clk 0:00:20]} 40. h5 {[%clk 0:00:58]}  Kd6 {[%clk 0:00:19]} 41. f4 {[%clk 0:00:55]}  gxh5 {[%clk 0:00:19]} 42. Bxf5 {[%clk 0:00:54]}  h6 {[%clk 0:00:19]} 43. Kb4 {[%clk 0:00:51]}  Kd5 {[%clk 0:00:18]} 44. Bg6 {[%clk 0:00:50]}  Kd4 {[%clk 0:00:17]} 45. Bxh5 {[%clk 0:00:47]}  Nd3+ {[%clk 0:00:12]} 46. Ka3 {[%clk 0:00:47]}  Ke4 {[%clk 0:00:12]} 47. Bg6+ {[%clk 0:00:47]} 1-0


[Site "https://www.chess.com"]

[Event "Titled Tuesday Blitz June 14 Early 2022"]
[White "Shirov, Alexei"]
[Black "Tanenbaum, Zachary"]
[WhiteFideId "2209390"]
[BlackFideId "2060850"]
[WhiteElo "2678"]
[BlackElo "2175"]
[Result "1/2-1/2"]
[Round "10"]
[TimeControl "180+1"]
[Date "2022.06.14"]
[WhiteClock "0:00:10"]
[BlackClock "0:00:09"]

1. e4 {[%clk 0:03:00]}  e5 {[%clk 0:03:00]} 2. Nf3 {[%clk 0:03:00]}  Nc6 {[%clk 0:03:00]} 3. Bb5 {[%clk 0:02:59]}  a6 {[%clk 0:03:01]} 4. Ba4 {[%clk 0:02:58]}  d6 {[%clk 0:03:02]} 5. c3 {[%clk 0:02:56]}  Nf6 {[%clk 0:03:02]} 6. d4 {[%clk 0:02:53]}  b5 {[%clk 0:03:02]} 7. Bc2 {[%clk 0:02:52]}  Be7 {[%clk 0:03:02]} 8. O-O {[%clk 0:02:50]}  O-O {[%clk 0:03:02]} 9. h3 {[%clk 0:02:49]}  Bb7 {[%clk 0:03:01]} 10. Nbd2 {[%clk 0:02:46]}  Nb8 {[%clk 0:03:01]} 11. dxe5 {[%clk 0:02:45]}  dxe5 {[%clk 0:02:53]} 12. Nxe5 {[%clk 0:02:45]}  Bd6 {[%clk 0:02:37]} 13. Nef3 {[%clk 0:02:41]}  Re8 {[%clk 0:02:36]} 14. Re1 {[%clk 0:02:36]}  Nbd7 {[%clk 0:02:35]} 15. Nb3 {[%clk 0:02:30]}  Nxe4 {[%clk 0:02:25]} 16. Na5 {[%clk 0:02:28]}  Qc8 {[%clk 0:02:06]} 17. Nxb7 {[%clk 0:02:16]}  Qxb7 {[%clk 0:02:07]} 18. Qd4 {[%clk 0:02:10]}  Ndf6 {[%clk 0:02:01]} 19. Be3 {[%clk 0:02:00]}  Rad8 {[%clk 0:01:59]} 20. Qa7 {[%clk 0:01:57]}  Qxa7 {[%clk 0:01:16]} 21. Bxa7 {[%clk 0:01:55]}  Bc5 {[%clk 0:01:17]} 22. Bxc5 {[%clk 0:01:48]}  Nxc5 {[%clk 0:01:18]} 23. Rxe8+ {[%clk 0:01:41]}  Rxe8 {[%clk 0:01:19]} 24. a4 {[%clk 0:01:39]}  g6 {[%clk 0:00:58]} 25. axb5 {[%clk 0:01:37]}  axb5 {[%clk 0:00:59]} 26. Nd4 {[%clk 0:01:37]}  Ne6 {[%clk 0:00:49]} 27. Nc6 {[%clk 0:01:23]}  Nf4 {[%clk 0:00:46]} 28. Kf1 {[%clk 0:01:18]}  Re2 {[%clk 0:00:30]} 29. Nd4 {[%clk 0:01:16]}  Re5 {[%clk 0:00:31]} 30. g3 {[%clk 0:01:13]}  Nxh3 {[%clk 0:00:17]} 31. Nf3 {[%clk 0:01:07]}  Rc5 {[%clk 0:00:11]} 32. Re1 {[%clk 0:00:44]}  Ng5 {[%clk 0:00:11]} 33. Re5 {[%clk 0:00:41]}  Rxe5 {[%clk 0:00:09]} 34. Nxe5 {[%clk 0:00:41]}  Kf8 {[%clk 0:00:08]} 35. Bd3 {[%clk 0:00:39]}  b4 {[%clk 0:00:07]} 36. cxb4 {[%clk 0:00:37]}  Ke7 {[%clk 0:00:07]} 37. Bc4 {[%clk 0:00:36]}  Nd7 {[%clk 0:00:05]} 38. Nd3 {[%clk 0:00:26]}  Ne4 {[%clk 0:00:06]} 39. Ke2 {[%clk 0:00:25]}  h5 {[%clk 0:00:06]} 40. Ke3 {[%clk 0:00:24]}  Nd6 {[%clk 0:00:06]} 41. Bd5 {[%clk 0:00:24]}  Kf6 {[%clk 0:00:05]} 42. Bc6 {[%clk 0:00:23]}  Ne5 {[%clk 0:00:05]} 43. Nxe5 {[%clk 0:00:23]}  Kxe5 {[%clk 0:00:05]} 44. f4+ {[%clk 0:00:22]}  Kf6 {[%clk 0:00:05]} 45. Bd7 {[%clk 0:00:21]}  Nc4+ {[%clk 0:00:04]} 46. Kd4 {[%clk 0:00:20]}  Nxb2 {[%clk 0:00:04]} 47. Bh3 {[%clk 0:00:19]}  Na4 {[%clk 0:00:04]} 48. Bf1 {[%clk 0:00:19]}  Ke7 {[%clk 0:00:05]} 49. Bb5 {[%clk 0:00:18]}  Nb6 {[%clk 0:00:05]} 50. Kc5 {[%clk 0:00:18]}  f6 {[%clk 0:00:05]} 51. Kc6 {[%clk 0:00:16]}  g5 {[%clk 0:00:04]} 52. fxg5 {[%clk 0:00:14]}  fxg5 {[%clk 0:00:05]} 53. Be2 {[%clk 0:00:14]}  h4 {[%clk 0:00:06]} 54. gxh4 {[%clk 0:00:13]}  gxh4 {[%clk 0:00:07]} 55. b5 {[%clk 0:00:13]}  Kd8 {[%clk 0:00:07]} 56. Bg4 {[%clk 0:00:12]}  Nc4 {[%clk 0:00:06]} 57. Bh3 {[%clk 0:00:12]}  Ne5+ {[%clk 0:00:06]} 58. Kd5 {[%clk 0:00:11]}  Nd3 {[%clk 0:00:07]} 59. Kc6 {[%clk 0:00:10]}  Nf4 {[%clk 0:00:07]} 60. Bg4 {[%clk 0:00:10]}  h3 {[%clk 0:00:07]} 61. Bxh3 {[%clk 0:00:10]}  Nxh3 {[%clk 0:00:08]} 62. b6 {[%clk 0:00:10]}  cxb6 {[%clk 0:00:09]} 63. Kxb6 {[%clk 0:00:10]} 1/2-1/2


[Site "https://www.chess.com"]

[Event "Titled Tuesday Blitz June 14 Early 2022"]
[White "Sjugirov, Sanan"]
[Black "Steinberg, Nitzan"]
[WhiteFideId "4189302"]
[BlackFideId "2801795"]
[WhiteElo "2602"]
[BlackElo "2471"]
[Result "0-1"]
[Round "10"]
[TimeControl "180+1"]
[Date "2022.06.14"]
[WhiteClock "0:00:02"]
[BlackClock "0:00:06"]

1. e4 {[%clk 0:03:00]}  g6 {[%clk 0:02:59]} 2. d4 {[%clk 0:03:00]}  Bg7 {[%clk 0:03:00]} 3. Nf3 {[%clk 0:02:59]}  d6 {[%clk 0:03:01]} 4. Bd3 {[%clk 0:02:59]}  Nc6 {[%clk 0:02:59]} 5. c3 {[%clk 0:02:59]}  e5 {[%clk 0:02:59]} 6. O-O {[%clk 0:02:58]}  Nf6 {[%clk 0:02:59]} 7. h3 {[%clk 0:02:58]}  O-O {[%clk 0:02:59]} 8. Re1 {[%clk 0:02:57]}  h6 {[%clk 0:02:52]} 9. Bc2 {[%clk 0:02:57]}  Re8 {[%clk 0:02:50]} 10. Nbd2 {[%clk 0:02:56]}  a5 {[%clk 0:02:35]} 11. Nf1 {[%clk 0:02:54]}  b5 {[%clk 0:02:22]} 12. Ng3 {[%clk 0:02:52]}  Bb7 {[%clk 0:02:13]} 13. d5 {[%clk 0:02:29]}  Nb8 {[%clk 0:02:10]} 14. Be3 {[%clk 0:02:21]}  c6 {[%clk 0:02:10]} 15. dxc6 {[%clk 0:02:16]}  Nxc6 {[%clk 0:01:55]} 16. Qd2 {[%clk 0:02:16]}  Kh7 {[%clk 0:01:56]} 17. Rad1 {[%clk 0:02:16]}  Bf8 {[%clk 0:01:56]} 18. h4 {[%clk 0:02:08]}  Ng4 {[%clk 0:01:53]} 19. h5 {[%clk 0:02:07]}  a4 {[%clk 0:01:44]} 20. a3 {[%clk 0:02:07]}  Na5 {[%clk 0:01:42]} 21. Qe2 {[%clk 0:02:05]}  Nxe3 {[%clk 0:01:40]} 22. Qxe3 {[%clk 0:02:05]}  Nc4 {[%clk 0:01:40]} 23. Qc1 {[%clk 0:02:05]}  Rc8 {[%clk 0:01:33]} 24. Bd3 {[%clk 0:02:04]}  Qf6 {[%clk 0:01:22]} 25. Bxc4 {[%clk 0:01:57]}  Rxc4 {[%clk 0:01:23]} 26. Qe3 {[%clk 0:01:54]}  Rcc8 {[%clk 0:01:10]} 27. Rd2 {[%clk 0:01:47]}  Qf4 {[%clk 0:01:08]} 28. Qa7 {[%clk 0:01:37]}  Rb8 {[%clk 0:00:58]} 29. Red1 {[%clk 0:01:35]}  Kg8 {[%clk 0:00:51]} 30. Ne1 {[%clk 0:00:55]}  Qg4 {[%clk 0:00:45]} 31. Nc2 {[%clk 0:00:48]}  Be7 {[%clk 0:00:38]} 32. Ne3 {[%clk 0:00:48]}  Qc8 {[%clk 0:00:29]} 33. Nd5 {[%clk 0:00:46]}  Bg5 {[%clk 0:00:20]} 34. Rd3 {[%clk 0:00:46]}  Qc5 {[%clk 0:00:17]} 35. Qa5 {[%clk 0:00:32]}  Rec8 {[%clk 0:00:13]} 36. Qb4 {[%clk 0:00:31]}  Bh4 {[%clk 0:00:12]} 37. Rf3 {[%clk 0:00:24]}  Bxd5 {[%clk 0:00:10]} 38. Rxd5 {[%clk 0:00:23]}  Qxb4 {[%clk 0:00:10]} 39. axb4 {[%clk 0:00:24]}  Rc6 {[%clk 0:00:07]} 40. Nf1 {[%clk 0:00:19]}  Bg5 {[%clk 0:00:07]} 41. hxg6 {[%clk 0:00:17]}  fxg6 {[%clk 0:00:07]} 42. Rfd3 {[%clk 0:00:17]}  Bc1 {[%clk 0:00:05]} 43. Ne3 {[%clk 0:00:09]}  Bxb2 {[%clk 0:00:06]} 44. Nd1 {[%clk 0:00:10]}  a3 {[%clk 0:00:04]} 45. Nxb2 {[%clk 0:00:01]}  axb2 {[%clk 0:00:05]} 46. Rd1 {[%clk 0:00:02]}  Rxc3 {[%clk 0:00:06]} 0-1


[Site "https://www.chess.com"]

[Event "Titled Tuesday Blitz June 14 Early 2022"]
[White "Srihari L R"]
[Black "Williams, Simon K"]
[WhiteFideId "46617116"]
[BlackFideId "404454"]
[WhiteElo "2170"]
[BlackElo "2468"]
[Result "1-0"]
[Round "10"]
[TimeControl "180+1"]
[Date "2022.06.14"]
[WhiteClock "0:00:06"]
[BlackClock "0:00:01"]

1. e4 {[%clk 0:02:57]}  c5 {[%clk 0:02:59]} 2. Nf3 {[%clk 0:02:56]}  d6 {[%clk 0:02:58]} 3. d4 {[%clk 0:02:56]}  cxd4 {[%clk 0:02:58]} 4. Nxd4 {[%clk 0:02:57]}  Nf6 {[%clk 0:02:58]} 5. Nc3 {[%clk 0:02:57]}  g6 {[%clk 0:02:58]} 6. Be2 {[%clk 0:02:53]}  Bg7 {[%clk 0:02:55]} 7. O-O {[%clk 0:02:52]}  Nc6 {[%clk 0:02:48]} 8. Be3 {[%clk 0:02:52]}  O-O {[%clk 0:02:47]} 9. Qd2 {[%clk 0:02:44]}  Bd7 {[%clk 0:02:38]} 10. h3 {[%clk 0:02:37]}  Rc8 {[%clk 0:02:36]} 11. f4 {[%clk 0:02:35]}  a6 {[%clk 0:02:28]} 12. Rac1 {[%clk 0:02:30]}  Re8 {[%clk 0:02:25]} 13. Bf3 {[%clk 0:02:27]}  e5 {[%clk 0:02:24]} 14. Nxc6 {[%clk 0:02:13]}  Bxc6 {[%clk 0:02:24]} 15. Rcd1 {[%clk 0:02:11]}  exf4 {[%clk 0:02:20]} 16. Bxf4 {[%clk 0:02:10]}  Nxe4 {[%clk 0:02:20]} 17. Nxe4 {[%clk 0:02:06]}  Bxe4 {[%clk 0:02:19]} 18. Bxe4 {[%clk 0:02:06]}  Rxe4 {[%clk 0:02:18]} 19. c3 {[%clk 0:02:06]}  Qb6+ {[%clk 0:01:48]} 20. Kh1 {[%clk 0:02:03]}  Rce8 {[%clk 0:01:47]} 21. Bxd6 {[%clk 0:01:46]}  Re2 {[%clk 0:01:45]} 22. Qd5 {[%clk 0:01:45]}  R8e6 {[%clk 0:01:28]} 23. Ba3 {[%clk 0:01:44]}  h5 {[%clk 0:01:18]} 24. Qd8+ {[%clk 0:01:40]}  Qxd8 {[%clk 0:01:17]} 25. Rxd8+ {[%clk 0:01:41]}  Re8 {[%clk 0:01:15]} 26. Rd7 {[%clk 0:01:37]}  f5 {[%clk 0:01:04]} 27. Rxb7 {[%clk 0:01:33]}  Rc2 {[%clk 0:01:03]} 28. Rb6 {[%clk 0:01:27]}  Kh7 {[%clk 0:01:02]} 29. Rxa6 {[%clk 0:01:21]}  Ree2 {[%clk 0:01:02]} 30. Rg1 {[%clk 0:01:21]}  f4 {[%clk 0:00:57]} 31. Bd6 {[%clk 0:01:15]}  g5 {[%clk 0:00:42]} 32. Ra5 {[%clk 0:01:06]}  Kg6 {[%clk 0:00:41]} 33. h4 {[%clk 0:01:04]}  Bf6 {[%clk 0:00:34]} 34. Ra6 {[%clk 0:00:41]}  Kf5 {[%clk 0:00:30]} 35. hxg5 {[%clk 0:00:38]}  Bxg5 {[%clk 0:00:30]} 36. Ra5+ {[%clk 0:00:37]}  Kg4 {[%clk 0:00:29]} 37. Ra8 {[%clk 0:00:28]}  Rxb2 {[%clk 0:00:26]} 38. Rg8 {[%clk 0:00:28]}  Rxa2 {[%clk 0:00:22]} 39. Rf1 {[%clk 0:00:18]}  Rf2 {[%clk 0:00:12]} 40. Rxf2 {[%clk 0:00:15]}  Rxf2 {[%clk 0:00:11]} 41. Be7 {[%clk 0:00:15]}  f3 {[%clk 0:00:03]} 42. Rxg5+ {[%clk 0:00:15]}  Kf4 {[%clk 0:00:03]} 43. gxf3 {[%clk 0:00:14]}  Re2 {[%clk 0:00:01]} 44. Bd8 {[%clk 0:00:12]}  Kxf3 {[%clk 0:00:01]} 45. Rxh5 {[%clk 0:00:09]}  Kg3 {[%clk 0:00:01]} 46. Rg5+ {[%clk 0:00:09]}  Kf3 {[%clk 0:00:01]} 47. Bb6 {[%clk 0:00:07]}  Rc2 {[%clk 0:00:01]} 48. Bd4 {[%clk 0:00:06]} 1-0


[Site "https://www.chess.com"]

[Event "Titled Tuesday Blitz June 14 Early 2022"]
[White "Stribuk, Artiom"]
[Black "Chen, Qi b"]
[WhiteFideId "13515659"]
[BlackFideId "8614733"]
[WhiteElo "2259"]
[BlackElo "2432"]
[Result "1-0"]
[Round "10"]
[TimeControl "180+1"]
[Date "2022.06.14"]
[WhiteClock "0:00:31"]
[BlackClock "0:01:22"]

1. d4 {[%clk 0:03:00]}  Nf6 {[%clk 0:02:59]} 2. c4 {[%clk 0:02:59]}  g6 {[%clk 0:02:59]} 3. g3 {[%clk 0:02:57]}  Bg7 {[%clk 0:02:58]} 4. Bg2 {[%clk 0:02:58]}  O-O {[%clk 0:02:58]} 5. Nf3 {[%clk 0:02:58]}  d6 {[%clk 0:02:55]} 6. O-O {[%clk 0:02:57]}  c6 {[%clk 0:02:51]} 7. Nc3 {[%clk 0:02:57]}  Bf5 {[%clk 0:02:51]} 8. Re1 {[%clk 0:02:45]}  Ne4 {[%clk 0:02:50]} 9. Qb3 {[%clk 0:02:45]}  Nxc3 {[%clk 0:02:47]} 10. bxc3 {[%clk 0:02:44]}  Bc8 {[%clk 0:02:44]} 11. e4 {[%clk 0:02:41]}  Nd7 {[%clk 0:02:43]} 12. Ba3 {[%clk 0:02:40]}  Re8 {[%clk 0:02:42]} 13. h4 {[%clk 0:02:18]}  Qc7 {[%clk 0:02:39]} 14. h5 {[%clk 0:02:15]}  c5 {[%clk 0:02:36]} 15. Rad1 {[%clk 0:01:52]}  Rb8 {[%clk 0:02:33]} 16. Bc1 {[%clk 0:01:36]}  b6 {[%clk 0:02:29]} 17. h6 {[%clk 0:01:37]}  Bh8 {[%clk 0:02:28]} 18. Bf4 {[%clk 0:01:22]}  e5 {[%clk 0:02:10]} 19. dxe5 {[%clk 0:01:09]}  Nxe5 {[%clk 0:02:03]} 20. Nxe5 {[%clk 0:01:05]}  dxe5 {[%clk 0:02:02]} 21. Bg5 {[%clk 0:01:04]}  Be6 {[%clk 0:02:00]} 22. Rd3 {[%clk 0:00:52]}  f6 {[%clk 0:01:57]} 23. Be3 {[%clk 0:00:52]}  Rbd8 {[%clk 0:01:54]} 24. Red1 {[%clk 0:00:49]}  Rxd3 {[%clk 0:01:54]} 25. Rxd3 {[%clk 0:00:49]}  Rd8 {[%clk 0:01:54]} 26. Rd5 {[%clk 0:00:41]}  Bxd5 {[%clk 0:01:38]} 27. cxd5 {[%clk 0:00:42]}  f5 {[%clk 0:01:22]} 28. exf5 {[%clk 0:00:33]}  gxf5 {[%clk 0:01:22]} 29. d6+ {[%clk 0:00:31]} 1-0


[Site "https://www.chess.com"]

[Event "Titled Tuesday Blitz June 14 Early 2022"]
[White "Tan, Zhongyi"]
[Black "Sanal, Vahap"]
[WhiteFideId "8603642"]
[BlackFideId "6300545"]
[WhiteElo "2510"]
[BlackElo "2574"]
[Result "1-0"]
[Round "10"]
[TimeControl "180+1"]
[Date "2022.06.14"]
[WhiteClock "0:00:54"]
[BlackClock "0:01:01"]

1. e4 {[%clk 0:03:00]}  c5 {[%clk 0:02:55]} 2. Nf3 {[%clk 0:03:00]}  Nc6 {[%clk 0:02:53]} 3. Bb5 {[%clk 0:02:59]}  g6 {[%clk 0:02:51]} 4. Bxc6 {[%clk 0:02:59]}  dxc6 {[%clk 0:02:51]} 5. d3 {[%clk 0:02:58]}  Bg7 {[%clk 0:02:51]} 6. h3 {[%clk 0:02:56]}  Nf6 {[%clk 0:02:50]} 7. O-O {[%clk 0:02:52]}  Nd7 {[%clk 0:02:51]} 8. a4 {[%clk 0:02:50]}  e5 {[%clk 0:02:50]} 9. a5 {[%clk 0:02:49]}  O-O {[%clk 0:02:49]} 10. Nbd2 {[%clk 0:02:44]}  Rb8 {[%clk 0:02:48]} 11. Nc4 {[%clk 0:02:42]}  b5 {[%clk 0:02:46]} 12. axb6 {[%clk 0:02:21]}  axb6 {[%clk 0:02:47]} 13. Bg5 {[%clk 0:02:20]}  f6 {[%clk 0:02:45]} 14. Bd2 {[%clk 0:02:20]}  Qc7 {[%clk 0:02:43]} 15. b4 {[%clk 0:02:15]}  cxb4 {[%clk 0:02:41]} 16. Bxb4 {[%clk 0:02:14]}  c5 {[%clk 0:02:42]} 17. Bd2 {[%clk 0:02:13]}  Bb7 {[%clk 0:02:34]} 18. Qb1 {[%clk 0:02:12]}  Bc6 {[%clk 0:02:31]} 19. Ne3 {[%clk 0:02:12]}  f5 {[%clk 0:02:29]} 20. Ng5 {[%clk 0:02:10]}  Qd6 {[%clk 0:01:51]} 21. Qb3+ {[%clk 0:01:58]}  Kh8 {[%clk 0:01:51]} 22. exf5 {[%clk 0:01:42]}  gxf5 {[%clk 0:01:46]} 23. Nf7+ {[%clk 0:01:41]}  Rxf7 {[%clk 0:01:47]} 24. Qxf7 {[%clk 0:01:41]}  Rg8 {[%clk 0:01:37]} 25. Nxf5 {[%clk 0:01:32]}  Qb8 {[%clk 0:01:25]} 26. Ne7 {[%clk 0:01:21]}  Bxg2 {[%clk 0:01:17]} 27. Qxg8+ {[%clk 0:01:17]}  Qxg8 {[%clk 0:01:16]} 28. Nxg8 {[%clk 0:01:18]}  Bxf1 {[%clk 0:01:17]} 29. Kxf1 {[%clk 0:01:01]}  Kxg8 {[%clk 0:01:17]} 30. Ra7 {[%clk 0:00:59]}  Nf6 {[%clk 0:01:14]} 31. Rb7 {[%clk 0:00:58]}  e4 {[%clk 0:01:07]} 32. Rxb6 {[%clk 0:00:54]}  exd3 {[%clk 0:01:07]} 33. cxd3 {[%clk 0:00:55]}  Bf8 {[%clk 0:01:01]} 34. Rxf6 {[%clk 0:00:54]} 1-0


[Site "https://www.chess.com"]

[Event "Titled Tuesday Blitz June 14 Early 2022"]
[White "Xiong, Jeffery"]
[Black "Dubov, Daniil"]
[WhiteFideId "2047640"]
[BlackFideId "24126055"]
[WhiteElo "2714"]
[BlackElo "2791"]
[Result "1/2-1/2"]
[Round "10"]
[TimeControl "180+1"]
[Date "2022.06.14"]
[WhiteClock "0:02:22"]
[BlackClock "0:01:53"]

1. d4 {[%clk 0:03:00]}  Nf6 {[%clk 0:02:59]} 2. c4 {[%clk 0:03:01]}  e6 {[%clk 0:03:00]} 3. Nc3 {[%clk 0:03:01]}  d5 {[%clk 0:03:00]} 4. Bg5 {[%clk 0:02:58]}  Be7 {[%clk 0:02:58]} 5. e3 {[%clk 0:02:58]}  h6 {[%clk 0:02:56]} 6. Bh4 {[%clk 0:02:59]}  O-O {[%clk 0:02:56]} 7. Rc1 {[%clk 0:02:59]}  b6 {[%clk 0:02:55]} 8. cxd5 {[%clk 0:02:59]}  Nxd5 {[%clk 0:02:52]} 9. Bxe7 {[%clk 0:03:00]}  Qxe7 {[%clk 0:02:44]} 10. Nxd5 {[%clk 0:03:00]}  exd5 {[%clk 0:02:45]} 11. Ne2 {[%clk 0:03:01]}  Bb7 {[%clk 0:02:36]} 12. Nc3 {[%clk 0:03:00]}  Nd7 {[%clk 0:02:33]} 13. Be2 {[%clk 0:03:00]}  Nf6 {[%clk 0:02:33]} 14. O-O {[%clk 0:03:01]}  c5 {[%clk 0:02:32]} 15. Bf3 {[%clk 0:02:48]}  Rfd8 {[%clk 0:02:31]} 16. a4 {[%clk 0:02:37]}  Rac8 {[%clk 0:02:23]} 17. a5 {[%clk 0:02:37]}  bxa5 {[%clk 0:01:58]} 18. Ra1 {[%clk 0:02:26]}  cxd4 {[%clk 0:01:57]} 19. Qxd4 {[%clk 0:02:26]}  Qb4 {[%clk 0:01:53]} 20. Qxa7 {[%clk 0:02:22]} 1/2-1/2


[Site "https://www.chess.com"]

[Event "Titled Tuesday Blitz June 14 Early 2022"]
[White "Avinash, Ramesh"]
[Black "Preotu, Razvan"]
[WhiteFideId "45018340"]
[BlackFideId "2613280"]
[WhiteElo "1875"]
[BlackElo "2407"]
[Result "0-1"]
[Round "11"]
[TimeControl "180+1"]
[Date "2022.06.14"]
[WhiteClock "0:00:36"]
[BlackClock "0:00:10"]

1. d4 {[%clk 0:02:59]}  Nf6 {[%clk 0:02:59]} 2. c4 {[%clk 0:02:57]}  g6 {[%clk 0:02:59]} 3. h4 {[%clk 0:02:55]}  Bg7 {[%clk 0:02:52]} 4. Nc3 {[%clk 0:02:54]}  Nc6 {[%clk 0:02:52]} 5. d5 {[%clk 0:02:42]}  Ne5 {[%clk 0:02:51]} 6. e4 {[%clk 0:02:41]}  d6 {[%clk 0:02:38]} 7. Be2 {[%clk 0:02:41]}  h5 {[%clk 0:02:29]} 8. Nf3 {[%clk 0:02:36]}  Nxf3+ {[%clk 0:01:49]} 9. gxf3 {[%clk 0:02:36]}  c6 {[%clk 0:01:47]} 10. Bg5 {[%clk 0:02:35]}  Qb6 {[%clk 0:01:46]} 11. Qd2 {[%clk 0:02:33]}  Bd7 {[%clk 0:01:35]} 12. O-O-O {[%clk 0:02:26]}  Rc8 {[%clk 0:01:09]} 13. Kb1 {[%clk 0:02:24]}  cxd5 {[%clk 0:01:08]} 14. Nxd5 {[%clk 0:02:11]}  Nxd5 {[%clk 0:01:07]} 15. cxd5 {[%clk 0:02:12]}  Bc3 {[%clk 0:00:53]} 16. Qc2 {[%clk 0:01:53]}  Bd4 {[%clk 0:00:37]} 17. Qd2 {[%clk 0:01:45]}  Bxf2 {[%clk 0:00:34]} 18. Rc1 {[%clk 0:01:43]}  f6 {[%clk 0:00:21]} 19. Bf4 {[%clk 0:01:37]}  Kf7 {[%clk 0:00:20]} 20. Bd3 {[%clk 0:01:20]}  Bd4 {[%clk 0:00:20]} 21. Rcd1 {[%clk 0:00:59]}  a5 {[%clk 0:00:13]} 22. Qg2 {[%clk 0:00:55]}  Rhg8 {[%clk 0:00:13]} 23. Bc1 {[%clk 0:00:53]}  a4 {[%clk 0:00:13]} 24. f4 {[%clk 0:00:53]}  a3 {[%clk 0:00:13]} 25. b3 {[%clk 0:00:51]}  Rc3 {[%clk 0:00:12]} 26. Qe2 {[%clk 0:00:41]}  Rxb3+ {[%clk 0:00:11]} 27. Kc2 {[%clk 0:00:38]}  Rb2+ {[%clk 0:00:09]} 28. Bxb2 {[%clk 0:00:36]}  Qxb2# {[%clk 0:00:10]} 0-1


[Site "https://www.chess.com"]

[Event "Titled Tuesday Blitz June 14 Early 2022"]
[White "Deac, Bogdan-Daniel"]
[Black "Dauner, Benedikt"]
[WhiteFideId "1226380"]
[BlackFideId "16225899"]
[WhiteElo "2648"]
[BlackElo "2230"]
[Result "1-0"]
[Round "11"]
[TimeControl "180+1"]
[Date "2022.06.14"]
[WhiteClock "0:01:03"]
[BlackClock "0:00:02"]

1. d4 {[%clk 0:03:00]}  Nf6 {[%clk 0:02:58]} 2. Nf3 {[%clk 0:02:59]}  b6 {[%clk 0:02:55]} 3. c4 {[%clk 0:02:59]}  Bb7 {[%clk 0:02:55]} 4. g3 {[%clk 0:02:59]}  g6 {[%clk 0:02:53]} 5. Bg2 {[%clk 0:02:59]}  Bg7 {[%clk 0:02:53]} 6. O-O {[%clk 0:02:59]}  O-O {[%clk 0:02:54]} 7. Qc2 {[%clk 0:03:00]}  d5 {[%clk 0:02:49]} 8. cxd5 {[%clk 0:02:58]}  Nxd5 {[%clk 0:02:50]} 9. a3 {[%clk 0:02:57]}  Nd7 {[%clk 0:02:41]} 10. e4 {[%clk 0:02:56]}  N5f6 {[%clk 0:02:39]} 11. Nc3 {[%clk 0:02:47]}  e6 {[%clk 0:02:36]} 12. Rd1 {[%clk 0:02:46]}  Qe7 {[%clk 0:02:35]} 13. Bf4 {[%clk 0:02:45]}  Rfc8 {[%clk 0:02:18]} 14. Rac1 {[%clk 0:02:44]}  Ne8 {[%clk 0:02:11]} 15. e5 {[%clk 0:02:42]}  c6 {[%clk 0:02:05]} 16. h4 {[%clk 0:02:35]}  Nc7 {[%clk 0:02:04]} 17. Bg5 {[%clk 0:02:29]}  Qe8 {[%clk 0:02:02]} 18. Ne4 {[%clk 0:02:29]}  Bf8 {[%clk 0:01:54]} 19. h5 {[%clk 0:02:27]}  c5 {[%clk 0:01:52]} 20. hxg6 {[%clk 0:02:24]}  hxg6 {[%clk 0:01:50]} 21. Nd6 {[%clk 0:02:12]}  Bxd6 {[%clk 0:01:39]} 22. exd6 {[%clk 0:02:13]}  Nd5 {[%clk 0:01:29]} 23. Qe4 {[%clk 0:02:11]}  cxd4 {[%clk 0:01:22]} 24. Nxd4 {[%clk 0:02:11]}  Nf8 {[%clk 0:01:07]} 25. Qh4 {[%clk 0:02:01]}  Rxc1 {[%clk 0:00:59]} 26. Rxc1 {[%clk 0:02:00]}  Rc8 {[%clk 0:00:59]} 27. Re1 {[%clk 0:01:43]}  Nh7 {[%clk 0:00:52]} 28. Be7 {[%clk 0:01:35]}  Rc4 {[%clk 0:00:28]} 29. Bf1 {[%clk 0:01:33]}  Rxd4 {[%clk 0:00:15]} 30. Qxd4 {[%clk 0:01:34]}  Nxe7 {[%clk 0:00:16]} 31. dxe7 {[%clk 0:01:32]}  Qxe7 {[%clk 0:00:17]} 32. Rd1 {[%clk 0:01:32]}  Nf8 {[%clk 0:00:15]} 33. Bg2 {[%clk 0:01:32]}  Bxg2 {[%clk 0:00:15]} 34. Kxg2 {[%clk 0:01:33]}  Qb7+ {[%clk 0:00:15]} 35. Kg1 {[%clk 0:01:33]}  Qf3 {[%clk 0:00:15]} 36. Qd8 {[%clk 0:01:33]}  Kg7 {[%clk 0:00:12]} 37. Qd4+ {[%clk 0:01:31]}  Kg8 {[%clk 0:00:12]} 38. Rc1 {[%clk 0:01:28]}  Qb7 {[%clk 0:00:09]} 39. Qd8 {[%clk 0:01:26]}  Kg7 {[%clk 0:00:08]} 40. Rc8 {[%clk 0:01:26]}  Nh7 {[%clk 0:00:03]} 41. Qh8+ {[%clk 0:01:02]}  Kh6 {[%clk 0:00:02]} 42. Rg8 {[%clk 0:01:03]}  Qe4 {[%clk 0:00:01]} 43. Qg7+ {[%clk 0:01:03]}  Kg5 {[%clk 0:00:02]} 44. Qxh7 {[%clk 0:01:02]}  Qe1+ {[%clk 0:00:02]} 45. Kg2 {[%clk 0:01:02]}  Qe4+ {[%clk 0:00:02]} 46. Kh2 {[%clk 0:01:03]} 1-0


[Site "https://www.chess.com"]